Cogmind - Beta 11.1 @@@ ROGUE MODE // 2022.05.07 @ 15:46:59 Player: IceNine Result: Destroyed by Y-45 Defender with Beam Rifle Performance ------------- Evolutions (2) 1000 Regions Visited (6) 1200 Robots Destroyed (43) 215 Value Destroyed (1132) 1132 Prototype IDs (2) 40 Alien Tech Used (0) 0 Bonus (535) 535 TOTAL SCORE: 4122 Bonus ------- Follower Combat Kills 35 Entered Garrisons 200 Aligned with FarCom 300 Cogmind --------- Core Integrity 0/550 Matter 273/300 Energy 72/100 System Corruption 0% Temperature Cool (21) Movement Walking (120) Location -8/Garrison Parts ------- > --- POWER (2) -------- (None) > --- PROPULSION (3) --- Carbon-fiber Leg > --- UTILITY (3) ------ Improved Heat Sink Small Storage Unit > --- WEAPON (3) ------- Small Laser Particle Gun Gauss Rifle > --- INVENTORY (8) ---- Aluminum Leg Wheel High-capacity Battery (250) Particle Gun Light Assault Rifle Peak State ------------ > --- POWER ------------ Nuclear Core Light Nuclear Core > --- PROPULSION ------- Aluminum Leg Aluminum Leg Aluminum Leg > --- UTILITY ---------- Improved Heat Sink Small Storage Unit Melee Analysis Suite > --- WEAPON ----------- Particle Gun Particle Gun Flak Cannon > --- INVENTORY -------- Aluminum Leg Wheel High-capacity Battery Small Laser Particle Gun Light Assault Rifle [Rating: 23] Favorites ----------- Power Light Ion Engine Engine Light Ion Engine Power Core Light Nuclear Core Propulsion Aluminum Leg Treads Light Treads Leg Aluminum Leg Utility Small Storage Unit Device Terrain Scanner Storage Small Storage Unit Processor Melee Analysis Suite Weapon Medium Laser Energy Gun Medium Laser Ballistic Gun Light Assault Rifle Ballistic Cannon Flak Cannon Launcher Grenade Launcher Build | -11 -10 -10 -10 -9 -8 -8 ------- Run | Scr Mat Min Exi Min Mat Gar Slots Evolved 4 | . . . . . 4 . Power 1 | . . . . . 1 . Propulsion 1 | . . . . . 1 . Utility 1 | . . . . . 1 . Weapon 1 | . . . . . 1 . Parts Attached 53 | 6 3 1 1 10 24 8 Power 8 | 1 . . . 2 4 1 Engine 5 | 1 . . . 2 1 1 Core 3 | . . . . . 3 . Reactor . | . . . . . . . Propulsion 12 | 2 . . . 1 8 1 Treads 1 | . . . . 1 . . Leg 11 | 2 . . . . 8 1 Wheel . | . . . . . . . Hover . | . . . . . . . Flight . | . . . . . . . Utility 10 | 1 1 1 1 2 3 1 Device 7 | . 1 1 1 1 2 1 Storage 2 | 1 . . . 1 . . Processor 1 | . . . . . 1 . Hackware . | . . . . . . . Protection . | . . . . . . . Artifact . | . . . . . . . Weapon 23 | 2 2 . . 5 9 5 Energy Gun 11 | 1 1 . . 1 5 3 Energy Cannon . | . . . . . . . Ballistic Gun 7 | 1 . . . 2 2 2 Ballistic Cannon 1 | . . . . . 1 . Launcher 4 | . 1 . . 2 1 . Special Weapon . | . . . . . . . Impact Weapon . | . . . . . . . Slashing Weapon . | . . . . . . . Piercing Weapon . | . . . . . . . Special Melee Weapon . | . . . . . . . Unidentified Prototypes 2 | . . . 1 . 1 . Parts Lost 27 | . . . . 5 12 10 Power 8 | . . . . 2 3 3 Propulsion 8 | . . . . 1 4 3 Utility 3 | . . . . 1 1 1 Weapon 8 | . . . . 1 4 3 Highest Loss Streak 9 | . . . . 4 6 9 To Critical Strikes . | . . . . . . . Average Slot Usage (%) 89 | . 99 100 100 92 81 68 Engine 10 | . 14 14 14 13 3 8 Core 1 | . . . . . 8 1 Treads 3 | . . . . 10 1 . Leg 20 | . 28 28 28 16 18 11 Device 10 | . 13 14 14 10 6 8 Storage 12 | . 14 14 14 14 9 9 Processor 1 | . . . . . 8 2 Energy Gun 14 | . 9 14 14 11 16 17 Ballistic Gun 3 | . 9 . . 5 3 7 Launcher 8 | . 9 14 14 10 3 . Naked Turns . | . . . . . . . Heaviest Build 30 | 10 14 14 21 23 30 28 Greatest Support 35 | 20 20 20 20 20 35 30 Greatest Overweight (x) 6 | 1 . . 1 1 6 3 Average Overweight (x) . | . . . . . . . Largest Inventory Capacity 8 | 8 8 8 8 8 8 8 Average Capacity 7 | 7 8 8 8 8 8 8 Most Carried 8 | 3 6 8 8 8 8 6 Average Carried 6 | 2 4 6 7 6 6 5 Final Capacity 8 | 8 8 8 8 8 8 8 Final Carried 8 | 3 5 8 8 8 6 5 Class Distribution -------------------- 67% | Mutant 23% | Scavenger-Skirmisher 6% | Skirmisher 3% | Scavenger-Mutant Dominant Class ---------------- Mutant | -10/Materials Mutant | -10/Mines Mutant | -10/Exiles Mutant | -9/Mines Scavenger-Skirmisher | -8/Materials Scavenger-Skirmisher | -8/Garrison Resources | -11 -10 -10 -10 -9 -8 -8 ----------- Run | Scr Mat Min Exi Min Mat Gar Matter Collected 1111 | 182 65 163 . 210 259 232 Remotely . | . . . . . . . Salvage Created 1145 | . 118 . . 165 608 254 Parts 80 | . 17 . . 20 27 16 Haulers Intercepted . | . . . . . . . Recyclers Shooed 2 | . . 1 . . 1 . Parts Field Recycled . | . . . . . . . Retrieved Matter . | . . . . . . . Parts Self-Destructed . | . . . . . . . Prevented . | . . . . . . . Kills | -11 -10 -10 -10 -9 -8 -8 ------- Run | Scr Mat Min Exi Min Mat Gar Combat Hostiles Destroyed 39 | . 3 . . 13 11 12 Guns 20 | . . . . 3 8 9 Cannons 3 | . . . . . . 3 AOE 15 | . 3 . . 10 2 . Classes Destroyed 9 | . 3 . . 3 2 1 Builder 3 | . 3 . . . . . Tunneler 1 | . . . . 1 . . Watcher 4 | . 3 . . . 1 . Swarmer 17 | . . . . 9 . 8 Grunt 14 | . 3 . . . 8 3 Duelist 1 | . . . . . 1 . Sentry 2 | . . . . . 2 . Hunter 1 | . . . . . . 1 Assembled 4 | . . . . 4 . . Best Kill Streak 7 | . 6 . . 4 7 4 Combat Bots Only 6 | . 2 . . 4 6 4 Max Kills in Single Turn 4 | . 2 . . 4 3 1 Gunslinging 1 | . . . . 1 . . Exploded 4 | . 1 . . 4 1 . Melee . | . . . . . . . Uniques/NPCs Destroyed . | . . . . . . . Combat | -11 -10 -10 -10 -9 -8 -8 -------- Run | Scr Mat Min Exi Min Mat Gar Damage Taken 3470 | . 174 6 . 854 1071 1365 Core 782 | . 45 . . 179 213 345 Absorbed by Shields . | . . . . . . . Core Remaining (%) 55 | 100 . . . 10 . . Volleys Fired 116 | . 16 . . 19 41 40 Largest 3 | . 2 . . 2 3 3 Hottest 174 | . 80 . . 83 155 174 Shots Fired 268 | . 27 . . 37 95 109 Gun 222 | . 16 . . 29 83 94 Cannon 15 | . . . . . . 15 Launcher 31 | . 11 . . 8 12 . Special . | . . . . . . . Kinetic 80 | . 14 . . 13 15 38 Thermal 157 | . 2 . . 16 68 71 Explosive 14 | . 11 . . 3 . . Electromagnetic 17 | . . . . 5 12 . Robot Hit Streak 18 | . 5 . . 2 8 18 Robot Miss Streak 7 | . 5 . . 5 3 7 Penetration Max . | . . . . . . . Secondary Targets 4 | . . . . 1 2 1 Max Gunslinging Chain 1 | . . . . 1 1 1 Shots Hit Robots 141 | . 14 . . 14 59 54 Core Hits 107 | . 17 1 . 21 35 33 Critical Kills . | . . . . . . . Critical Parts Destroyed . | . . . . . . . Critical Strikes 4 | . . . . 1 2 1 Burn 4 | . . . . 1 2 1 Melee Attacks . | . . . . . . . Impact . | . . . . . . . Slashing . | . . . . . . . Piercing . | . . . . . . . Sneak Attacks . | . . . . . . . Combat Hostiles . | . . . . . . . Follow-up Attacks . | . . . . . . . Damage Inflicted 3116 | . 606 4 . 556 1095 855 Guns 1553 | . 62 . . 137 686 668 Cannons 187 | . . . . . . 187 Explosions 1328 | . 544 . . 408 376 . Melee . | . . . . . . . Ramming 48 | . . 4 . 11 33 . Kinetic 540 | . 50 . . 34 68 388 Thermal 1244 | . 12 . . 147 618 467 Explosive 816 | . 544 . . 272 . . Electromagnetic 468 | . . . . 92 376 . Impact . | . . . . . . . Slashing . | . . . . . . . Piercing . | . . . . . . . Highest Corruption 4 | . . . . 4 . . Average Corruption 4 | . . . . 4 . . Corruption Purged . | . . . . . . . Corruption Blocked . | . . . . . . . Effects 24 | . . . . 24 . . Message Errors 6 | . . . . 6 . . Matter Fused 9 | . . . . 9 . . Heat Flow Errors 4 | . . . . 4 . . Energy Discharges 1 | . . . . 1 . . Data Loss (minor) 1 | . . . . 1 . . Data Loss (major) 2 | . . . . 2 . . Misfires 1 | . . . . 1 . . Overload Shots . | . . . . . . . Overflow Damage . | . . . . . . . Projectiles . | . . . . . . . Explosions . | . . . . . . . Melee . | . . . . . . . Knockbacks 14 | . . . . . . 14 Impact . | . . . . . . . Kinetic 11 | . . . . . . 11 Secondary 3 | . . . . . . 3 Self-Inflicted Damage 38 | . 18 . . 1 19 . Shots 3 | . 1 . . 1 1 . Rammed 3 | . . . . 2 . 1 Targets Rammed 10 | . . 2 . 2 5 1 Kicked 7 | . . 2 . . 5 . Crushed . | . . . . . . . Highest Temperature 663 | . 10 . . 268 420 663 Average Temperature 158 | . 5 . . 56 149 233 Received Heat Transfer 1176 | . 87 . . 180 612 297 Effects 26 | . . . . 1 1 24 Shutdowns 5 | . . . . . . 5 Energy Bleed 2 | . . . . . 1 1 Interference 6 | . . . . 1 . 5 Matter Decay 2 | . . . . . . 2 Short Circuit 1 | . . . . . . 1 Damage (minor) 2 | . . . . . . 2 Damage (major) 7 | . . . . . . 7 Damage (core) 1 | . . . . . . 1 Siege Activations . | . . . . . . . Robots Corrupted . | . . . . . . . Combat Hostiles . | . . . . . . . Parts Fried 1 | . . . . . 1 . Impact Corruptions . | . . . . . . . Robots Melted 1 | . . . . . 1 . Combat Hostiles 1 | . . . . . 1 . Parts Melted 4 | . . . . . 4 . Heat Transferred 3222 | . 37 . . 470 1707 1008 Parts Sabotaged . | . . . . . . . Parts Stolen . | . . . . . . . Parts Stripped . | . . . . . . . Power Chain Reactions 2 | . . . . 1 1 . Missiles Intercepted . | . . . . . . . Alert | -11 -10 -10 -10 -9 -8 -8 ------- Run | Scr Mat Min Exi Min Mat Gar Peak Influence 280 | . 254 99 . 132 205 280 Initial 99 | . . 99 . . 42 . Average 87 | . 122 99 . 50 64 170 Maximum Alert Level 1 | . 1 . . . 1 1 Low Security (%) 83 | 100 64 100 . 100 91 48 Level 1 16 | . 35 . . . 8 51 Level 2 . | . . . . . . . Level 3 . | . . . . . . . Level 4 . | . . . . . . . Level 5 . | . . . . . . . High Security . | . . . . . . . Max Security . | . . . . . . . Squads Dispatched 4 | . 1 . . . 3 . Investigation . | . . . . . . . Extermination . | . . . . . . . Reinforcement 4 | . 1 . . . 3 . Assault . | . . . . . . . Garrison . | . . . . . . . Intercept . | . . . . . . . Searches Triggered . | . . . . . . . Construction Impeded 2 | . . . . . 2 . Haulers Reinforced . | . . . . . . . Active Scanning Responses . | . . . . . . . Cargo Convoy Interrupts . | . . . . . . . Stealth | -11 -10 -10 -10 -9 -8 -8 --------- Run | Scr Mat Min Exi Min Mat Gar Distress Signals 5 | . 1 . . 2 2 . Communications Jammed . | . . . . . . . Distress Signals . | . . . . . . . Times Spotted 62 | . 6 3 . 22 18 13 Peak Tracking Total 8 | . 3 3 . 8 4 5 Tactical Retreats 2 | . . . . 1 1 . Traps | -11 -10 -10 -10 -9 -8 -8 ------- Run | Scr Mat Min Exi Min Mat Gar Traps Triggered 1 | . . . . . . 1 Indirectly . | . . . . . . . Trap Hack Attempts . | . . . . . . . Triggered . | . . . . . . . Disarmed . | . . . . . . . Reprogrammed . | . . . . . . . Reused . | . . . . . . . Traps Extracted . | . . . . . . . Installed . | . . . . . . . Triggered . | . . . . . . . Machines | -11 -10 -10 -10 -9 -8 -8 ---------- Run | Scr Mat Min Exi Min Mat Gar Machines Disabled 4 | . 3 . . 1 . . Max in Single Turn 2 | . 2 . . 1 . . Machines Sabotaged . | . . . . . . . Garrisons Compromised . | . . . . . . . Overloaded Fab Kills . | . . . . . . . Hacking | -11 -10 -10 -10 -9 -8 -8 --------- Run | Scr Mat Min Exi Min Mat Gar Machines Accessed 7 | . . . 4 . 3 . Terminals 2 | . . . . . 2 . Fabricators . | . . . . . . . Repair Stations . | . . . . . . . Recycling Units . | . . . . . . . Scanalyzers . | . . . . . . . Garrison Access 1 | . . . . . 1 . Total Hacks 56 | . . . 49 . 7 . Successful 53 | . . . 49 . 4 . Failed 3 | . . . . . 3 . Catastrophic . | . . . . . . . Database Lockouts . | . . . . . . . Manual 2 | . . . 2 . . . Terminals 5 | . . . . . 5 . Fabricators . | . . . . . . . Repair Stations . | . . . . . . . Recycling Units . | . . . . . . . Scanalyzers . | . . . . . . . Garrison Access 2 | . . . . . 2 . Terminal Hacks 52 | . . . 49 . 3 . Record 50 | . . . 49 . 1 . Emergency Access Points 1 | . . . . . 1 . Registered Prototypes 1 | . . . . . 1 . Fabricator Hacks . | . . . . . . . Repair Station Hacks . | . . . . . . . Recycling Unit Hacks . | . . . . . . . Scanalyzer . | . . . . . . . Garrison Access Hacks 1 | . . . . . 1 . Unlock Access 1 | . . . . . 1 . Unauthorized Hacks . | . . . . . . . Terminals . | . . . . . . . Fabricators . | . . . . . . . Repair Stations . | . . . . . . . Recycling Units . | . . . . . . . Scanalyzers . | . . . . . . . Garrison Access . | . . . . . . . Data Cores Recovered . | . . . . . . . Used . | . . . . . . . Hacking Detections 2 | . . . . . 2 . Full Trace Events . | . . . . . . . Feedback Events . | . . . . . . . Feedback Blocked . | . . . . . . . Robot Schematics Acquired . | . . . . . . . Robots Built . | . . . . . . . Authchips . | . . . . . . . Time . | . . . . . . . Total Robot Build Rating . | . . . . . . . Part Schematics Acquired . | . . . . . . . Parts Built . | . . . . . . . Authchips . | . . . . . . . Time . | . . . . . . . Total Part Build Rating . | . . . . . . . Parts Repaired . | . . . . . . . Time . | . . . . . . . Parts Recycled . | . . . . . . . Recycled Matter . | . . . . . . . Retrieved Matter . | . . . . . . . Retrieved Components . | . . . . . . . Parts Scanalyzed . | . . . . . . . Part Schematics Acquired . | . . . . . . . Parts Damaged . | . . . . . . . Bothacking | -11 -10 -10 -10 -9 -8 -8 ------------ Run | Scr Mat Min Exi Min Mat Gar Used RIF Installer . | . . . . . . . Robots Hacked . | . . . . . . . Non-combat . | . . . . . . . Combat . | . . . . . . . Robot Hacks Applied . | . . . . . . . Relay Couplers Released . | . . . . . . . Fabnet Peak Effective % . | . . . . . . . Robots Rewired . | . . . . . . . Allies Hacked . | . . . . . . . Hacks Repelled . | . . . . . . . Allies | -11 -10 -10 -10 -9 -8 -8 -------- Run | Scr Mat Min Exi Min Mat Gar Total Allies 3 | . . . . 3 . . Largest Group 3 | . . . . 3 3 . Highest-Rated Group 40 | . . . . 40 40 . Highest-Rated Ally 16 | . . . . 16 16 . Total Orders . | . . . . . . . Ally Attacks 15 | . . . . . 15 . Total Damage 137 | . . . . . 137 . Kills 1 | . . . . . 1 . Allies Corrupted . | . . . . . . . Allies Melted . | . . . . . . . Intel | -11 -10 -10 -10 -9 -8 -8 ------- Run | Scr Mat Min Exi Min Mat Gar Robot Analysis Total . | . . . . . . . Derelict Logs Recovered . | . . . . . . . Drone Launches . | . . . . . . . Drone Recoveries . | . . . . . . . Exploration | -11 -10 -10 -10 -9 -8 -8 ------------- Run | Scr Mat Min Exi Min Mat Gar Turns Passed 4378 | 118 167 142 1316 1098 806 731 Spaces Moved 2642 | 90 98 113 929 604 471 337 Core 11 | 3 . . . . 4 4 Treads 511 | . . . . 468 43 . Legs 2120 | 87 98 113 929 136 424 333 Wheels . | . . . . . . . Hover . | . . . . . . . Flight . | . . . . . . . Fastest Speed 50 | 50 120 120 120 120 120 120 Average Speed 146 | 118 120 120 141 158 135 174 Slowest Speed 350 | 120 120 120 190 190 350 260 Overloaded Moves . | . . . . . . . Propulsion Burnouts . | . . . . . . . Robots Hopped . | . . . . . . . Cave-ins Triggered . | . . . . . . . Exploration Rate (%) 42 | 4 21 39 93 86 26 25 Regions Visited 6 Branch Regions 3 Pre-discovered Areas 1 | . . . 1 . . . Known Exits Taken 1 | . . . . . 1 . Unknown Exits Taken 5 | 1 1 1 1 1 . . Scrap Searched 2 | . . . . 2 . . Spaces Dug . | . . . . . . . Terrain Destroyed 70 | . 41 . . 27 1 1 Melee . | . . . . . . . Projectile 1 | . . . . . . 1 AOE 69 | . 41 . . 27 1 . Terrain Rammed . | . . . . . . . Walls Destroyed . | . . . . . . . Machines Disabled . | . . . . . . . Actions | -11 -10 -10 -10 -9 -8 -8 --------- Run | Scr Mat Min Exi Min Mat Gar Total 2926 | 98 122 118 933 707 553 395 Wait 66 | . . . 2 60 3 1 Move 2636 | 89 97 112 928 603 470 337 Hop . | . . . . . . . Pick Up 22 | 3 4 3 1 6 4 1 Fast Attach 31 | 6 1 . . 4 16 4 Attach 13 | . . . . 3 7 3 Detach 1 | . . . . 1 . . Swap 10 | . 2 1 1 3 2 1 Drop 16 | . 2 . 1 6 5 2 Fire 116 | . 16 . . 19 41 40 Melee . | . . . . . . . Ram 1 | . . . . . . 1 Kick 7 | . . 2 . . 5 . Crush 2 | . . . . 2 . . Escape Stasis 5 | . . . . . . 5 Rewire . | . . . . . . . Trap . | . . . . . . . Miscellaneous . | . . . . . . . Route ------- -11/Scrapyard -10/Materials -10/Mines -10/Exiles (discovered 2 exits: [*Min x2]) -9/Mines -8/Materials -8/Garrison History --------- Turn | Location | Event 36 | -11/Scrapyard | Discovered new exit (range 16) 119 | -11/Scrapyard | Entered Materials 248 | -10/Materials | Met 8R-AWN 280 | -10/Materials | Discovered new exit (range 6) 286 | -10/Materials | Entered Mines 288 | -10/Mines | Followed 8R-AWN into the Mines 310 | -10/Mines | Build established: Mutant 421 | -10/Mines | Discovered new exit (range 5) 428 | -10/Mines | Entered Exiles 446 | -10/Exiles | Discovered new exit (range 15) 469 | -10/Exiles | Welcomed by 8R-AWN 491 | -10/Exiles | Met EX-HEX 617 | -10/Exiles | Met EX-DEC 653 | -10/Exiles | Learned location of Zion (-7) 701 | -10/Exiles | Visited The Gauntlet 929 | -10/Exiles | Discovered new exit (range 10) 1001 | -10/Exiles | Met EX-BIN 1051 | -10/Exiles | Aligned with FarCom system 1052 | -10/Exiles | Given EX-Vault access code 1194 | -10/Exiles | Opened EX-Vault 1204 | -10/Exiles | Found Prototype Device 1205 | -10/Exiles | Identified Cloak of Protection 1267 | -10/Exiles | Warned to stay clear of 0b10 Research branches 1438 | -10/Exiles | Learned about 8R-AWN's background 1744 | -10/Exiles | Left Exiles lab with Cloak of Protection 1744 | -10/Exiles | Entered Mines 1796 | -9/Mines | Assembled infested the area 1938 | -9/Mines | Core integrity fell below 50% 1958 | -9/Mines | Core integrity fell below 20% 1975 | -9/Mines | Lost 4 parts (1p1n1u1w) 2757 | -9/Mines | Discovered new exit (range 6) 2815 | -9/Mines | Assisted by bots powering up and referring to "LRC-V3" 2842 | -9/Mines | Entered Materials 2842 | -8/Materials | Accompanied by 3 allies 2842 | -8/Materials | Evolved 4 slots: Power x1, Propulsion x1, Utility x1, Weapon x1 3396 | -8/Materials | Lost 6 parts (3n1u2w) 3490 | -8/Materials | Identified exit to Garrison 3648 | -8/Materials | Entered Garrison 3676 | -8/Garrison | Build established: Scavenger-Skirmisher 3708 | -8/Garrison | Triggered checkpoint 3779 | -8/Garrison | Core integrity fell below 50% 3807 | -8/Garrison | Core integrity fell below 20% 3825 | -8/Garrison | Lost 9 parts (2p3n1u3w) 4162 | -8/Garrison | Triggered checkpoint 4379 | -8/Garrison | Destroyed by Y-45 Defender with Beam Rifle Last Messages --------------- 03968_ Slug penetrates Wall. 03978_ S-10 Pest destroyed. 03978_ Switching to secondary target: S-10 Pest. 03978_ Slug penetrates Wall. 03985_ Acquired 4 matter. 03987_ Slug penetrates Wall. 03990_ Slug penetrates S-10 Pest. 03990_ S-10 Pest destroyed. 03991_ Acquired 15 matter. 03996_ S-10 Pest destroyed. 04000_ ALERT: Garrison interior compromised. 04002_ Acquired 1 matter. 04005_ Acquired 6 matter. 04021_ Acquired 10 matter. 04162_ Beams of light sweep through the air. An alarm sounds. 04351_ Slug penetrates S-10 Pest. 04358_ S-10 Pest destroyed. 04370_ Lgt. Ion Engine destroyed. 04370_ Critical hit (Burn: +37). 04371_ Slug penetrates Y-45 Defender. Map ----- +----------------------------------------------------+ | ?????????????????????????????????????????????????? | | ?????????????????????????????????????????????????? | | ?????????????????????????????????????????????????? | | ???????????????????????????????????????????#####?? | | ???????????????????????????????????????????# #?? | | ???????????????????????????????????######### #?? | | ???????????????????????????????????# #?? | | ???????????????????????????????????# [ #?? | | ???????????????????????????????????# "#########?? | | ???????????????????????????????????# ##?????????? | | ???????????????????????????????????# #??????????? | | ???????????????????????????????????# #??????????? | | ???????????????????????????????????# #??????????? | | ???????????????????????????????????# #??????????? | | ???????????????????????????????????# #??????????? | | ???????????????????????????????????# ########???? | | ???????????????????????????????????# ##"""""#???? | | ???????????????????????????????????# =#?# #????? | | ????????????????????????############= ### ###### | | ????????????????????????# [=== | | ????????????????????????# | | ????????????????????????# ######### ### "###### | | ????????????????????????# #???????# #?# "%+ ??? | | ????????????????????????# ### #???# #?########?? | | ????????????????????????# Y ????# ^#??????????? | | ???????????????s??#?????#@ #???????+ [#??????????? | | ??????????????????# ???#= #???????#[%#??????????? | | ?????????????# ## ##% ##??????#%=#??????????? | | ?????????????# ######## #??????????? | | ?????????????# g #??????????? | | ?????????????# #??????????? | | ?????????????# ## ## ########"##??????????? | | ?????????????# ???# ?# #??????# #???????????? | | ????????????????? ? "?###### #???????????? | | ??????????????? "g# #???????????? | | ????????????g? "g########???????????? | | ????????????g" "????????????????????? | | ?????????????# ## ## #????????????????????? | | ?????????????# ?# ?# #????????????????????? | | ????????????? ?? ?? ????????????????????? | | ?????????????????? ??? ????s???????????????? | | ????????????????? ?????? ????????????????????? | | ????????????????????????#####????????????????????? | | ?????????????????????????????????????????????????? | | ?????????????????????????????????????????????????? | | ?????????????????????????????????????????????????? | | ?????????????????????????????????????????????????? | | ?????????????????????????????????????????????????? | | ?????????????????????????????????????????????????? | | ?????????????????????????????????????????????????? | +----------------------------------------------------+ Best States ------------- Heat Dissipation 45 Energy Generation 23 Energy Capacity 300 Matter Stores 300 Matter Capacity 300 Sight Range 16 Terrain Scan Range 14 Terrain Scan Density 10 Cloak Strength 5 Evasion (%) 55 Melee Accuracy 5 Recoil Reduction 1 Item Schematics ----------------- None Robot Schematics ------------------ None Fabricated ------------ Nothing Alien Tech Used ----------------- None Achievements -------------- Librarian Tourist Challenges ------------ None Game ------ Seed WaveMetafieldNanoactuators Manual? 0 Play Time 00:49:23 Cumulative 8.7 hours Start 2022.05.07 @ 14:31:12 End 2022.05.07 @ 15:46:59 Sessions 1 Manual Loads 0 Difficulty Rogue Special Mode None Game No. 10 Rogue 10 Adventurer 0 Explorer 0 Win Type - Total 0 Types 0/0/0/0/0/0/0/0/0 Lore% 12 Gallery% 11 Achievement% 11 Wizard Run 0 Options --------- ASCII 0 Keyboard 0 Movement Numpad Keybinds 0 Fullscreen 1 Font 36/X11 Map View 76x50 Tactical HUD 1 Map Filters NONE Filters NONE Steam 1 RUN: 7793c782-6ae7-451b-ba0b-4a2082cb1c49